fUST/lending_fUST_20240323
["ID","MTS","AMOUNT","RATE_DAILY","PERIOD"]
[320063697,1711127443975,-500.0,0.00026267,2]
[320063698,1711127443984,-527.24,0.00026267,2]
[320063699,1711127443994,-500.0,0.00026267,2]
[320063700,1711127444003,-500.0,0.00026267,2]
[320063701,1711127444012,-2204.38,0.00026267,2]
[320063702,1711127444021,-500.0,0.00026267,2]
[320063703,1711127444030,-500.0,0.00026267,2]
[320063704,1711127444039,-2099.0,0.00026267,2]
[320063705,1711127444048,-500.0,0.00026267,2]
[320063706,1711127444057,-394.71182017,0.00026267,2]
[320063707,1711127444067,-938.67,0.00026267,2]
[320063708,1711127444076,-500.0,0.00026267,2]
[320063709,1711127444085,-192.7722209,0.00026267,2]
[320063710,1711127444096,-500.26798743,0.00026267,2]
[320063711,1711127444105,-500.0,0.00026267,2]
[320063712,1711127444114,-500.0,0.00026267,2]
[320063713,1711127444124,-500.0,0.00026267,2]
[320063714,1711127444134,-500.0,0.00026267,2]
[320063715,1711127444143,-500.0,0.00026267,2]
[320063716,1711127444153,-500.0,0.00026267,2]
[320063717,1711127444162,-500.0,0.00026267,2]
[320063718,1711127444172,-500.0,0.00026267,2]
[320063719,1711127444182,-1656.45212927,0.00026501,2]
[320063720,1711127444191,-500.0,0.00026546,2]
[320063721,1711127444201,-500.0,0.00026546,2]
[320063722,1711127444209,-500.0,0.00026546,2]
[320063723,1711127444222,-500.0,0.00026546,2]
[320063724,1711127444231,-500.0,0.00026546,2]
[320063725,1711127444240,-500.0,0.00026547,2]
[320063726,1711127444250,-500.0,0.00026547,2]
[320063727,1711127444260,-500.0,0.00026547,2]
[320063728,1711127444269,-500.0,0.00026547,2]
[320063730,1711127444278,-643.42,0.00026547,2]
[320063732,1711127444287,-728.39,0.00026547,2]
[320063734,1711127444297,-608.24,0.00026547,2]
[320063735,1711127444307,-1109.69,0.00026547,2]
[320063737,1711127444316,-500.0,0.00026547,2]
[320063739,1711127444325,-2339.26,0.00026547,2]
[320063740,1711127444334,-500.0,0.00026547,2]
[320063741,1711127444347,-1137.39,0.00026547,2]
[320063743,1711127444356,-1616.23,0.00026547,2]
[320063744,1711127444365,-1662.36,0.00026547,2]
[320063745,1711127444375,-500.0,0.00026547,2]
[320063746,1711127444384,-573.73,0.00026547,2]
[320063748,1711127444393,-500.0,0.00026547,2]
[320063749,1711127444402,-500.0,0.00026547,2]
[320063750,1711127444411,-500.0,0.00026547,2]
[320063751,1711127444420,-500.77745652,0.00026547,2]
[320063752,1711127444430,-500.0,0.00026547,2]
[320063753,1711127444439,-500.0,0.00026547,2]
[320063754,1711127444448,-500.0,0.00026547,2]
[320063755,1711127444457,-1000.0,0.00026715,2]
[320063756,1711127444466,-500.0,0.00026812,2]
[320063757,1711127444476,-500.0,0.00026812,2]
[320063758,1711127444485,-1575.2,0.00026812,2]
[320063759,1711127444494,-321.85747366,0.00026813,2]
[320063760,1711127444503,-500.0,0.00026813,2]
[320063761,1711127444512,-500.0,0.00026813,2]
[320063762,1711127444522,-500.0,0.00026813,2]
[320063763,1711127444531,-500.0,0.00026813,2]
[320063764,1711127444541,-500.0,0.00026813,2]
[320063765,1711127444550,-500.0,0.00026813,2]
[320063766,1711127444559,-500.0,0.00026813,2]
[320063767,1711127444568,-803.67,0.00026813,2]
[320063768,1711127444577,-581.2,0.00026813,2]
[320063769,1711127444586,-500.0,0.00026813,2]
[320063770,1711127444599,-512.81,0.00026813,2]
[320063771,1711127444607,-500.0,0.00026813,2]
[320063772,1711127444616,-500.0,0.00026813,2]
[320063773,1711127444625,-500.0,0.00026813,2]
[320063774,1711127444635,-500.0,0.00026813,2]
[320063775,1711127444644,-500.0,0.00026813,2]
[320063776,1711127444653,-500.0,0.00026813,2]
[320063777,1711127444662,-500.0,0.00026813,2]
[320063778,1711127444673,-500.0,0.00026813,2]
[320063779,1711127444682,-1603.44,0.00026813,2]
[320063780,1711127444691,-500.0,0.00026813,2]
[320063781,1711127444700,-500.0,0.00026813,2]
[320063782,1711127444710,-500.0,0.00026813,2]
[320063783,1711127444719,-8293.87,0.00026813,2]
[320063784,1711127444728,-500.0,0.00026813,2]
[320063785,1711127444738,-500.0,0.00026813,2]
[320063786,1711127444747,-709.52,0.00026813,2]
[320063787,1711127444757,-3279.55,0.00026813,2]
[320063788,1711127444766,-500.0,0.00026813,2]
[320063789,1711127444776,-5009.74,0.00026813,2]
[320063790,1711127444784,-1471.5,0.00026813,2]
[320063791,1711127444793,-2580.71,0.00026813,2]
[320063792,1711127444803,-500.0,0.00026813,2]
[320063793,1711127444812,-4599.75,0.00026813,2]
[320063794,1711127444821,-500.0,0.00026813,2]
[320063795,1711127444830,-1878.85,0.00026813,2]
[320063796,1711127444839,-1977.53,0.00026813,2]
[320063797,1711127444849,-500.0,0.00026813,2]
[320063798,1711127444858,-845.31,0.00026813,2]
[320063799,1711127444867,-500.0,0.00026813,2]
[320063800,1711127444877,-2067.58,0.00026813,2]
[320063801,1711127444886,-20697.06,0.00026813,2]
[320063802,1711127444896,-500.0,0.00026813,2]
[320063803,1711127444906,-500.0,0.00026813,2]
[320063804,1711127444914,-500.0,0.00026813,2]
[320063805,1711127444923,-731.69,0.00026813,2]
[320063806,1711127444933,-1574.97,0.00026813,2]
[320063807,1711127444942,-518.74,0.00026813,2]
[320063808,1711127444950,-500.0,0.00026813,2]
[320063809,1711127444959,-500.0,0.00026813,2]
[320063810,1711127444969,-750.63,0.00026813,2]
[320063811,1711127444978,-500.0,0.00026813,2]
[320063812,1711127444987,-743.38,0.00026813,2]
[320063813,1711127444996,-1089.16,0.00026813,2]
[320063814,1711127445005,-24132.96,0.00026813,2]
[320063815,1711127445014,-500.0,0.00026813,2]
[320063816,1711127445023,-4230.63,0.00026813,2]
[320063817,1711127445033,-5577.93,0.00026813,2]
[320063818,1711127445042,-500.0,0.00026813,2]
[320063819,1711127445051,-1973.23,0.00026813,2]
[320063820,1711127445060,-629.77,0.00026813,2]
[320063821,1711127445069,-500.0,0.00026813,2]
[320063822,1711127445079,-500.0,0.00026813,2]
[320063823,1711127445089,-151.0,0.00026813,2]
[320063824,1711127445099,-500.0,0.00026813,2]
[320063825,1711127445108,-500.0,0.00026813,2]
[320063826,1711127445117,-33411.31,0.00026813,2]
[320063827,1711127445127,-500.0,0.00026814,2]
[320063828,1711127445137,-1784.8,0.00026814,2]
[320063829,1711127445147,-500.0,0.00026814,2]
[320063830,1711127445156,-500.0,0.00026814,2]
[320063831,1711127445166,-500.0,0.00026814,2]
[320063832,1711127445175,-954.83,0.00026814,2]
[320063833,1711127445185,-657.21,0.00026814,2]
[320063834,1711127445194,-500.0,0.00026814,2]
[320063835,1711127445206,-500.0,0.00026814,2]
[320063836,1711127445217,-500.0,0.00026814,2]
[320063837,1711127445226,-501.90478215,0.00026814,2]
[320063838,1711127445235,-500.0,0.00026814,2]
[320063839,1711127445244,-601.06,0.00026814,2]
[320063840,1711127445254,-500.0,0.00026814,2]
[320063841,1711127445263,-552.01,0.00026814,2]
[320063842,1711127445272,-2317.49,0.00026814,2]
[320063843,1711127445282,-500.0,0.00026814,2]
[320063844,1711127445291,-22567.43,0.00026814,2]
[320063845,1711127445302,-155.502776,0.00026814,2]
[320063846,1711127445312,-500.0,0.00026814,2]
[320063847,1711127445321,-500.0,0.00026814,2]
[320063848,1711127445330,-500.0,0.00026814,2]
[320063849,1711127445340,-500.0,0.00026814,2]
[320063850,1711127445352,-500.0,0.00026815,2]
[320063851,1711127445361,-500.0,0.00026815,2]
[320063852,1711127445371,-500.37151895,0.00026815,2]
[320063853,1711127445380,-500.0,0.00026815,2]
[320063854,1711127445389,-500.0,0.00026815,2]
[320063855,1711127445400,-500.0,0.00026815,2]
[320063856,1711127445409,-504.57,0.00026815,2]
[320063857,1711127445418,-500.0,0.00026815,2]
[320063858,1711127445427,-500.0,0.00026815,2]
[320063859,1711127445436,-500.0,0.00026815,2]
[320063860,1711127445445,-500.0,0.00026815,2]
[320063861,1711127445454,-500.0,0.00026815,2]
[320063862,1711127445463,-500.0,0.00026815,2]
[320063863,1711127445472,-500.0,0.00026815,2]
[320063864,1711127445481,-1744.07,0.00026815,2]
[320063865,1711127445490,-500.0,0.00026815,2]
[320063866,1711127445499,-841.8,0.00026815,2]
[320063867,1711127445508,-1323.11,0.00026815,2]
[320063868,1711127445517,-500.0,0.00026815,2]
[320063869,1711127445527,-500.0,0.00026815,2]
[320063870,1711127445536,-500.0,0.00026815,2]
[320063871,1711127445545,-458.29010584,0.00026815,2]
[320063872,1711127445553,-500.0,0.00026815,2]
[320063873,1711127445563,-500.0,0.00026815,2]
[320063874,1711127445572,-872.69,0.00026815,2]
[320063875,1711127445581,-500.0,0.00026815,2]
[320063876,1711127445592,-500.0,0.00026815,2]
[320063877,1711127445601,-500.0,0.00026815,2]
[320063878,1711127445610,-500.0,0.00026815,2]
[320063879,1711127445619,-500.0,0.00026815,2]
[320063880,1711127445628,-3256.29,0.00026815,2]
[320063881,1711127445637,-500.0,0.00026815,2]
[320063882,1711127445646,-500.43857309,0.00026815,2]
[320063883,1711127445655,-500.0,0.00026815,2]
[320063884,1711127445664,-500.0,0.00026815,2]
[320063885,1711127445674,-500.0,0.00026815,2]
[320063886,1711127445783,-500.0,0.00026815,2]
[320063887,1711127445793,-500.0,0.00026815,2]
[320063888,1711127445802,-500.0,0.00026815,2]
[320063889,1711127445811,-500.0,0.00026815,2]
[320063890,1711127445821,-500.0,0.00026815,2]
[320063891,1711127445830,-500.0,0.00026815,2]
[320063892,1711127445839,-500.0,0.00026815,2]
[320063893,1711127445851,-500.0,0.00026815,2]
[320063894,1711127445860,-500.0,0.00026815,2]
[320063895,1711127445869,-527.24,0.00026815,2]
[320063896,1711127445878,-500.0,0.00026815,2]
[320063897,1711127445888,-500.0,0.00026815,2]
[320063898,1711127445897,-2204.38,0.00026815,2]
[320063899,1711127445906,-500.0,0.00026815,2]
[320063900,1711127445915,-2099.0,0.00026815,2]
[320063901,1711127445924,-151.0,0.00026815,2]
[320063902,1711127445933,-500.0,0.00026815,2]
[320063903,1711127445940,-151.0,0.00026815,2]
[320063904,1711127445949,-151.0,0.00026815,2]
[320063905,1711127445958,-288.82541,0.00026815,2]
[320063906,1711127445967,-938.67,0.00026815,2]
[320063907,1711127445976,-500.0,0.00026815,2]
[320063909,1711127445985,-500.0,0.00026815,2]
[320063911,1711127445994,-500.0,0.00026815,2]
[320063913,1711127446002,-500.0,0.00026815,2]
[320063915,1711127446012,-306.0,0.00026822,2]
[320063918,1711127446022,-7752.82337168,0.00027,2]
[320063921,1711127446032,-1617.07893366,0.00027,2]
[320063924,1711127446041,-1500.0,0.00027,2]
[320063926,1711127446050,-500.0,0.00027043,2]
[320063928,1711127446059,-500.0,0.00027043,2]
[320063930,1711127446068,-500.0,0.00027044,2]
[320063932,1711127446077,-500.0,0.00027044,2]
[320063933,1711127446086,-500.0,0.00027044,2]
[320063934,1711127446097,-500.0,0.00027044,2]
[320063935,1711127446107,-500.0,0.00027044,2]
[320063936,1711127446116,-225.25713481,0.00027044,2]
[320064005,1711127446477,-500.0,0.00025716,2]
[320064008,1711127446486,-399.87944743,0.00025716,2]
[320064011,1711127446496,-580.59362758,0.00025716,2]
[320064014,1711127446506,-274.74286519,0.00027044,2]
[320064017,1711127446514,-500.0,0.00027044,30]
[320064020,1711127446523,-500.0,0.00027044,2]
[320064023,1711127446532,-500.0,0.00027044,2]
[320064026,1711127446542,-500.0,0.00027044,2]
[320064030,1711127446551,-483.96581288,0.00027044,2]
[320064033,1711127446560,-500.0,0.00027044,2]
[320064037,1711127446569,-500.0,0.00027044,2]
[320064041,1711127446578,-500.0,0.00027044,2]
[320064045,1711127446588,-500.0,0.00027044,2]
[320064048,1711127446601,-500.0,0.00027044,2]
[320064051,1711127446610,-500.0,0.00027044,2]
[320064054,1711127446619,-500.0,0.00027044,2]
[320064058,1711127446628,-500.0,0.00027044,2]
[320064061,1711127446638,-500.0,0.00027044,2]
[320064064,1711127446647,-500.0,0.00027044,2]
[320064067,1711127446656,-500.0,0.00027044,2]
[320064070,1711127446665,-500.0,0.00027044,2]
[320064072,1711127446675,-500.0,0.00027044,2]
[320064073,1711127446684,-212.24,0.00027044,2]
[320064074,1711127446692,-500.0,0.00027044,2]
[320064076,1711127446701,-153.0,0.00027094,2]
[320064077,1711127446710,-153.0,0.00027094,2]
[320064078,1711127446718,-153.0,0.00027094,2]
[320064080,1711127446727,-500.0,0.00027095,2]
[320064082,1711127446738,-500.0,0.00027095,2]
[320064084,1711127446747,-643.42,0.00027095,2]
[320064086,1711127446757,-728.39,0.00027095,2]
[320064088,1711127446766,-1109.69,0.00027095,2]
[320064090,1711127446775,-2339.26,0.00027095,2]
[320064092,1711127446784,-632.49565172,0.00027095,2]
[320064094,1711127446793,-1137.39,0.00027095,2]
[320064096,1711127446803,-1616.23,0.00027095,2]
[320064098,1711127446812,-1662.36,0.00027095,2]
[320064100,1711127446821,-573.73,0.00027095,2]
[320064102,1711127446831,-500.0,0.00027095,2]
[320064104,1711127446840,-210.85507968,0.00027095,2]
[320064106,1711127446850,-500.0,0.00027095,2]
[320064108,1711127446859,-500.0,0.00027095,2]
[320064110,1711127446868,-500.0,0.00027095,2]
[320064111,1711127446878,-500.0,0.00027095,2]
[320064113,1711127446888,-500.0,0.0002736,2]
[320064115,1711127446897,-500.0,0.0002736,2]
[320064118,1711127446907,-1575.2,0.0002736,2]
[320064120,1711127446916,-500.0,0.00027361,2]
[320064123,1711127446926,-162.17961263,0.00027361,2]
[320064126,1711127446936,-500.0,0.00027361,2]
[320064128,1711127446945,-500.0,0.00027361,2]
[320064130,1711127446955,-500.0,0.00027361,2]
[320064131,1711127446966,-500.0,0.00027361,2]
[320064133,1711127446975,-803.67,0.00027361,2]
[320064135,1711127446984,-581.2,0.00027361,2]
[320064138,1711127446994,-221.173067,0.00027361,2]
[320064140,1711127447005,-410.9932973,0.00027361,2]
[320064141,1711127447016,-241.28784113,0.00027361,2]
[320064142,1711127447025,-500.0,0.00027361,2]
[320064143,1711127447036,-151.0,0.00027361,2]
[320064144,1711127447047,-151.0,0.00027361,2]
[320064145,1711127447057,-500.0,0.00027361,2]
[320064146,1711127447067,-500.0,0.00027361,2]
[320064147,1711127447078,-500.0,0.00027361,2]
[320064148,1711127447089,-1603.44,0.00027361,2]
[320064149,1711127447099,-500.0,0.00027361,2]
[320064150,1711127447108,-8293.87,0.00027361,2]
[320064151,1711127447118,-500.0,0.00027361,2]
[320064152,1711127447127,-500.0,0.00027361,2]
[320064153,1711127447137,-709.52,0.00027361,2]
[320064154,1711127447147,-3279.55,0.00027361,2]
[320064155,1711127447157,-500.0,0.00027361,2]
[320064156,1711127447166,-5009.74,0.00027361,2]
[320064157,1711127447175,-151.0,0.00027361,2]
[320064158,1711127447184,-151.0,0.00027361,2]
[320064159,1711127447194,-1471.5,0.00027361,2]
[320064160,1711127447205,-2580.71,0.00027361,2]
[320064161,1711127447216,-500.0,0.00027361,2]
[320064162,1711127447227,-4599.75,0.00027361,2]
[320064163,1711127447237,-500.0,0.00027361,2]
[320064164,1711127447246,-1878.85,0.00027361,2]
[320064165,1711127447255,-1977.53,0.00027361,2]
[320064166,1711127447265,-500.0,0.00027361,2]
[320064167,1711127447275,-845.31,0.00027361,2]
[320064168,1711127447284,-500.0,0.00027361,2]
[320064169,1711127447294,-2067.58,0.00027361,2]
[320064170,1711127447304,-20697.06,0.00027361,2]
[320064171,1711127447314,-246.28499172,0.00027361,2]
[320064172,1711127447323,-500.0,0.00027361,2]
[320064173,1711127447332,-731.69,0.00027361,2]
[320064174,1711127447341,-1574.97,0.00027361,2]
[320064175,1711127447351,-518.74,0.00027361,2]
[320064176,1711127447360,-500.0,0.00027361,2]
[320064177,1711127447370,-500.0,0.00027361,2]
[320064178,1711127447379,-750.63,0.00027361,2]
[320064179,1711127447388,-500.0,0.00027361,2]
[320064180,1711127447398,-743.38,0.00027361,2]
[320064181,1711127447407,-1089.16,0.00027361,2]
[320064182,1711127447416,-24047.14754937,0.00027361,2]
[320064183,1711127449280,-500.0,0.00025517,2]
[320064184,1711127449290,-354.17378445,0.00025517,2]
[320064185,1711127449299,-500.0,0.00025716,2]
[320064186,1711127449308,-500.0,0.00025716,2]
[320064187,1711127449318,-549.44889528,0.00025716,2]
[320064188,1711127449327,-154.10094782,0.00025716,2]
[320064189,1711127449338,-500.0,0.00025717,2]
[320064190,1711127449348,-1657.12279344,0.00026166,2]
[320064191,1711127449478,-295.47492821,0.00026166,2]
[320064192,1711127449488,-500.0,0.00026264,2]
[320064193,1711127449497,-16.56633075,0.00026265,2]
[320064194,1711127449594,-483.43366925,0.00026265,2]
[320064195,1711127449602,-595.14464428,0.00026813,2]
[320064200,1711128227608,-171.19995,0.00023407,2]
[320064201,1711128227632,-907.80005,0.00023651,2]
[320064202,1711128423892,-180.0,0.00021551,2]
[320064266,1711128637721,-924.30141951,0.00021551,2]
[320064268,1711128637731,-180.0,0.0002365,2]
[320064270,1711128637740,-8075.4479,0.0002365,2]
[320064272,1711128637749,-23992.19995,0.00023651,2]
[320064274,1711128637758,-250.0,0.00024017,2]
[320064276,1711128637767,-165.628719,0.00024444,2]
[320064278,1711128637776,-250.0,0.00024537,2]
[320064280,1711128637784,-593.526453,0.00024874,2]
[320064282,1711128637798,-1500.0,0.00025,2]
[320064283,1711128637806,-500.0,0.00025517,2]
[320064285,1711128637816,-500.0,0.00025517,2]
[320064287,1711128637825,-550.65275008,0.00025615,2]
[320064289,1711128637835,-151.80276999,0.000257,2]
[320064291,1711128637844,-151.80276999,0.000257,2]
[320064293,1711128637853,-236.64260937,0.00025712,2]
[320064295,1711128637862,-229.62001759,0.00025712,2]
[320064297,1711128637870,-262.99728441,0.00025712,7]
[320064299,1711128637879,-337.96879196,0.00025712,2]
[320064301,1711128637889,-466.7872142,0.00025712,2]
[320064303,1711128637897,-500.0,0.00025713,2]
[320064304,1711128637906,-354.17378445,0.00025713,2]
[320064305,1711128637915,-549.44889528,0.00025713,2]
[320064306,1711128637924,-451.37369979,0.00025713,2]
[320064307,1711128637932,-154.10094782,0.00025713,2]
[320064308,1711128637942,-500.0,0.00025713,2]
[320064309,1711128637951,-171.37690604,0.00025713,2]
[320064310,1711128637960,-3006.25,0.00025714,2]
[320064311,1711128637969,-1348.87,0.00025714,2]
[320064312,1711128637979,-4216.43,0.00025714,2]
[320064313,1711128637988,-1812.74,0.00025714,2]
[320064314,1711128637997,-774.86,0.00025714,2]
[320064315,1711128638006,-18972.3,0.00025714,2]
[320064316,1711128638015,-500.0,0.00025714,2]
[320064317,1711128638024,-1443.73,0.00025714,2]
[320064318,1711128638033,-688.07,0.00025714,2]
[320064319,1711128638047,-998.39,0.00025714,2]
[320064320,1711128638056,-4054.35,0.00025714,2]
[320064321,1711128638065,-32019.17,0.00025714,2]
[320064322,1711128638074,-1443.94,0.00025714,2]
[320064323,1711128638083,-7602.71,0.00025714,2]
[320064324,1711128638092,-500.0,0.00025714,2]
[320064325,1711128638101,-3491.25015462,0.00025715,2]
[320064326,1711128638110,-599.18782755,0.00025715,2]
[320064327,1711128638119,-500.0,0.00025715,2]
[320064328,1711128638129,-500.0,0.00025715,2]
[320064329,1711128638138,-500.0,0.00025715,2]
[320064330,1711128638147,-500.0,0.00025715,2]
[320064331,1711128638156,-500.0,0.00025715,2]
[320064332,1711128638165,-512.81,0.00025715,2]
[320064333,1711128638174,-500.0,0.00025715,2]
[320064334,1711128638183,-500.0,0.00025715,2]
[320064335,1711128638192,-500.0,0.00025715,2]
[320064336,1711128638201,-500.0,0.00025715,2]
[320064337,1711128638210,-500.0,0.00025715,2]
[320064338,1711128638219,-500.0,0.00025715,2]
[320064339,1711128638228,-500.0,0.00025715,2]
[320064340,1711128638237,-500.0,0.00025715,2]
[320064341,1711128638247,-500.0,0.00025715,2]
[320064342,1711128638256,-500.0,0.00025715,2]
[320064343,1711128638265,-500.0,0.00025715,2]
[320064344,1711128638275,-500.0,0.00025715,2]
[320064345,1711128638286,-500.0,0.00025715,2]
[320064346,1711128638302,-640.23,0.00025715,2]
[320064347,1711128638311,-500.0,0.00025715,2]
[320064348,1711128638320,-500.0,0.00025715,2]
[320064349,1711128638329,-500.0,0.00025715,2]
[320064351,1711128638338,-500.0,0.00025715,2]
[320064353,1711128638347,-500.0,0.00025715,2]
[320064355,1711128638357,-500.0,0.00025715,2]
[320064356,1711128638366,-500.0,0.00025715,2]
[320064357,1711128638375,-244.70375022,0.00025715,2]
[320064358,1711128638384,-581.2,0.00025715,2]
[320064360,1711128638393,-500.0,0.00025715,2]
[320064361,1711128638403,-500.0,0.00025715,2]
[320064362,1711128638412,-502.14253907,0.00025715,2]
[320064363,1711128638422,-500.0,0.00025715,2]
[320064364,1711128638431,-500.0,0.00025715,2]
[320064365,1711128638440,-500.0,0.00025715,2]
[320064366,1711128638449,-500.0,0.00025715,2]
[320064367,1711128638459,-500.0,0.00025715,2]
[320064368,1711128638468,-500.0,0.00025715,2]
[320064369,1711128638478,-158.36715322,0.00025715,2]
[320064370,1711128638487,-352.49416645,0.00025715,2]
[320064371,1711128638496,-627.12549703,0.00025715,2]
[320064372,1711128638505,-1535.68,0.00025715,2]
[320064373,1711128638514,-4226.96,0.00025715,2]
[320064374,1711128638524,-576.02,0.00025715,2]
[320064375,1711128638533,-500.0,0.00025715,2]
[320064376,1711128638545,-500.0,0.00025715,2]
[320064377,1711128638555,-500.0,0.00025715,2]
[320064378,1711128638565,-534.93257802,0.00025715,2]
[320064379,1711128638574,-650.39,0.00025715,2]
[320064380,1711128638584,-529.01,0.00025715,2]
[320064381,1711128638594,-504.38,0.00025715,2]
[320064382,1711128638603,-500.0,0.00025715,2]
[320064383,1711128638617,-500.0,0.00025715,2]
[320064384,1711128638627,-500.0,0.00025715,2]
[320064385,1711128638638,-500.0,0.00025715,2]
[320064386,1711128638648,-500.0,0.00025715,2]
[320064387,1711128638658,-1895.28,0.00025715,2]
[320064388,1711128638668,-681.43,0.00025715,2]
[320064389,1711128638677,-2365.65,0.00025715,2]
[320064390,1711128638687,-1722.28,0.00025715,2]
[320064391,1711128638696,-500.0,0.00025715,2]
[320064392,1711128638707,-500.0,0.00025715,2]
[320064393,1711128638716,-500.0,0.00025715,2]
[320064394,1711128638726,-500.0,0.00025715,2]
[320064395,1711128638735,-500.0,0.00025715,2]
[320064396,1711128638745,-500.0,0.00025715,2]
[320064397,1711128638754,-500.0,0.00025715,2]
[320064398,1711128638763,-22125.45,0.00025715,2]
[320064399,1711128638773,-500.0,0.00025715,2]
[320064400,1711128638782,-500.0,0.00025715,2]
[320064401,1711128638795,-500.0,0.00025715,2]
[320064402,1711128638804,-500.0,0.00025715,2]
[320064403,1711128638812,-500.0,0.00025715,2]
[320064404,1711128638822,-500.0,0.00025715,2]
[320064405,1711128638831,-1891.01,0.00025715,2]
[320064406,1711128638840,-500.0,0.00025715,2]
[320064407,1711128638850,-570.85928019,0.00025715,2]
[320064408,1711128638859,-500.0,0.00025715,2]
[320064409,1711128638868,-837.53,0.00025715,2]
[320064410,1711128638877,-5345.52,0.00025715,2]
[320064411,1711128638887,-500.0,0.00025715,2]
[320064412,1711128638896,-500.0,0.00025715,2]
[320064413,1711128638905,-500.0,0.00025715,2]
[320064414,1711128638915,-500.0,0.00025715,2]
[320064415,1711128638924,-500.0,0.00025715,2]
[320064416,1711128638933,-500.0,0.00025715,2]
[320064417,1711128638942,-224.7373622,0.00025715,2]
[320064418,1711128638951,-500.0,0.00025715,2]
[320064419,1711128638961,-500.0,0.00025715,2]
[320064420,1711128638970,-603.53,0.00025715,2]
[320064421,1711128638979,-500.0,0.00025715,2]
[320064422,1711128638988,-500.0,0.00025715,2]
[320064423,1711128638997,-500.0,0.00025715,2]
[320064424,1711128639007,-1263.23,0.00025716,2]
[320064425,1711128639016,-500.0,0.00025716,2]
[320064426,1711128639025,-836.33,0.00025716,2]
[320064427,1711128639034,-3120.61,0.00025716,2]
[320064428,1711128639046,-1778.66,0.00025716,2]
[320064429,1711128639056,-500.0,0.00025716,2]
[320064430,1711128639065,-500.0,0.00025716,2]
[320064431,1711128639074,-606.92371417,0.00025716,2]
[320064432,1711128639083,-500.0,0.00025716,2]
[320064433,1711128639092,-915.04,0.00025716,2]
[320064434,1711128639101,-629.83,0.00025716,2]
[320064435,1711128639110,-500.0,0.00025716,2]
[320064436,1711128639118,-500.0,0.00025716,2]
[320064437,1711128639128,-500.0,0.00025716,2]
[320064438,1711128639137,-500.0,0.00025716,2]
[320064439,1711128639146,-500.0,0.00025716,2]
[320064440,1711128639156,-500.0,0.00025716,2]
[320064441,1711128639165,-500.0,0.00025716,2]
[320064442,1711128639174,-500.0,0.00025716,2]
[320064443,1711128639184,-500.0,0.00025716,2]
[320064444,1711128639193,-2112.54,0.00025716,2]
[320064445,1711128639203,-2011.54,0.00025716,2]
[320064446,1711128639212,-500.0,0.00025716,2]
[320064447,1711128639222,-500.0,0.00025716,2]
[320064448,1711128639231,-500.0,0.00025716,2]
[320064449,1711128639240,-500.0,0.00025716,2]
[320064450,1711128639250,-500.0,0.00025716,2]
[320064451,1711128639259,-500.0,0.00025716,2]
[320064452,1711128639269,-320.95695272,0.00025716,2]
[320064453,1711128639279,-500.0,0.00025716,2]